bitfinex-derivatives/quotes_SOLF0:USTF0_20250609
["timestamp","ask_amount","ask_price","bid_price","bid_amount"]
[1749465126587,0.04402495,155.06,155.03,0.04881269]
[1749465126997,0.04402495,155.06,155.04,6.4464]
[1749465127393,0.04402495,155.06,155.03,0.04881269]
[1749465127795,0.04402495,155.06,155.03,6.14831677]
[1749465128000,0.04402495,155.06,155.05,6.446]
[1749465129001,0.04402495,155.06,155.03,0.04881269]
[1749465130900,6.4465,155.04,155.03,0.04881269]
[1749465131102,0.04402495,155.06,154.98,38.08]
[1749465131103,8.20550408,155.05,154.98,38.08]
[1749465131300,8.20550408,155.05,154.94,409.72]
[1749465131301,6.09950408,155.03,154.94,409.72]
[1749465131498,6.4488,154.99,154.94,416.1705]
[1749465131698,6.09950408,155.03,154.94,409.72]
[1749465131895,5.11982688,155.04,154.94,409.72]
[1749465132095,0.04458749,155.01,154.97,0.04107042]
[1749465132504,38.12458749,155.01,154.97,0.04107042]
[1749465133204,0.04458749,155.01,154.97,0.04107042]
[1749465133906,6.4488,154.99,154.97,0.04107042]
[1749465134204,0.04458749,155.01,154.97,0.04107042]
[1749465134902,6.4488,154.99,154.97,0.04107042]
[1749465135710,6.4482,155.0,154.97,0.04107042]
[1749465135906,0.04458749,155.01,154.97,0.04107042]
[1749465136113,6.4482,155.0,154.97,0.04107042]
[1749465136306,0.04458749,155.01,154.97,0.04107042]
[1749465136607,6.4485,155.0,154.97,0.04107042]
[1749465137008,0.04458749,155.01,154.97,0.04107042]
[1749465140214,6.4487,154.99,154.97,0.04107042]
[1749465140516,0.04458749,155.01,154.97,0.04107042]
[1749465142313,5.16689674,155.01,154.97,0.04107042]
[1749465142511,6.4489,154.99,154.97,0.04107042]
[1749465143111,11.57050925,155.0,154.97,0.04107042]
[1749465143409,5.13118907,154.99,154.97,0.04107042]
[1749465143606,11.57958907,155.0,154.97,0.04107042]
[1749465144312,5.13118907,155.0,154.97,0.04107042]
[1749465144721,5.13118907,155.0,154.97,6.1405745]
[1749465144906,0.04458749,155.01,154.98,6.4489]
[1749465145111,0.04458749,155.01,154.99,6.09950408]
[1749465145417,0.04458749,155.01,154.98,38.08]
[1749465145917,6.49238749,155.01,154.98,44.529]
[1749465146126,0.04458749,155.01,154.98,38.08]
[1749465146619,0.04458749,155.01,154.97,0.04107042]
[1749465147012,5.17755136,155.01,154.97,0.04107042]
[1749465147207,0.04458749,155.01,154.97,0.04107042]
[1749465147719,5.17755136,155.01,154.97,0.04107042]
[1749465147913,6.49258749,155.01,154.97,6.49007042]
[1749465148114,5.13296387,155.0,154.97,0.04107042]
[1749465148314,0.04458749,155.01,154.97,0.04107042]
[1749465148513,6.49258749,155.01,154.97,6.49027042]
[1749465148719,5.13296387,155.0,154.97,6.49027042]
[1749465149012,0.04458749,155.01,154.97,0.04107042]
[1749465149417,5.17755136,155.01,154.97,0.04107042]
[1749465149619,0.04458749,155.01,154.97,0.04107042]
[1749465150216,5.17755136,155.01,154.97,0.04107042]
[1749465150417,6.4484,155.0,154.97,0.04107042]
[1749465150619,11.58136387,155.0,154.97,0.04107042]
[1749465150819,6.4484,155.0,154.97,0.04107042]
[1749465151016,0.04458749,155.01,154.97,3.31792668]
[1749465151718,0.04458749,155.01,154.98,6.4489]
[1749465151916,0.04458749,155.01,154.97,3.31792668]
[1749465152119,0.04458749,155.01,154.97,9.76712668]
[1749465152617,0.04458749,155.01,154.97,3.31792668]
[1749465153426,6.4485,154.99,154.98,10.39]
[1749465153826,11.59533658,154.99,154.98,10.39]
[1749465155122,5.14683658,154.99,154.98,10.39]
[1749465155426,0.04458749,155.01,154.98,10.39]
[1749465155826,0.04458749,155.01,154.98,16.8386]
[1749465156330,0.04458749,155.01,154.98,10.39]
[1749465156722,5.19519291,155.01,154.98,10.39]
[1749465156921,0.04458749,155.01,154.98,10.39]
[1749465157418,5.15060542,155.0,154.98,10.39]
[1749465158724,5.15060542,154.99,154.98,10.39]
[1749465159121,11.59900542,155.0,154.98,10.39]
[1749465159320,5.15060542,154.99,154.98,10.39]
[1749465159835,11.59910542,154.99,154.98,10.39]
[1749465160725,5.15060542,154.99,154.98,10.39]
[1749465162730,11.59910542,154.99,154.98,10.39]
[1749465163938,5.15060542,154.99,154.98,10.39]
[1749465164332,5.15060542,155.0,154.98,10.39]
[1749465164835,0.04458749,155.01,154.98,10.39]
[1749465165131,0.04458749,155.01,155.0,5.34029745]
[1749465166039,0.04458749,155.01,155.0,11.78839745]
[1749465166332,5.14696914,155.06,155.0,5.34029745]
[1749465166534,5.14696914,155.05,155.0,5.34029745]
[1749465166735,5.14696914,155.04,155.0,5.34029745]
[1749465166933,5.14696914,155.07,155.0,5.34029745]
[1749465167134,5.14696914,155.06,155.0,5.34029745]
[1749465167340,11.64102608,155.05,155.01,0.04213369]
[1749465167539,5.14696914,155.04,155.01,0.04213369]
[1749465167738,0.04795694,155.05,155.02,5.34029745]
[1749465167940,0.04795694,155.05,155.04,5.34029745]
[1749465172140,0.04795694,155.05,155.04,11.78679745]
[1749465172545,0.04795694,155.05,155.04,5.34029745]
[1749465173544,0.04795694,155.05,155.04,11.78679745]
[1749465177249,0.04795694,155.05,155.04,9.72008951]
[1749465178953,0.04795694,155.05,155.03,37.88]
[1749465179251,0.04795694,155.05,155.02,3.27358951]
[1749465179451,0.04795694,155.05,155.01,6.48963369]
[1749465179644,0.04795694,155.05,155.02,3.27358951]
[1749465179839,0.04795694,155.05,155.01,0.04213369]
[1749465180448,6.49425694,155.05,155.01,0.04213369]
[1749465181147,0.04795694,155.05,155.02,3.27358951]
[1749465181344,0.04795694,155.05,155.01,0.04213369]
[1749465181345,0.04795694,155.05,155.04,3.27358951]
[1749465182250,0.04795694,155.05,155.02,3.27358951]
[1749465182448,6.49425694,155.05,155.02,3.27358951]
[1749465183046,6.4466,155.04,155.02,3.27358951]
[1749465183451,6.4466,155.04,155.01,0.04213369]
[1749465183653,6.447,155.03,155.01,0.04213369]
[1749465183848,5.16012581,155.04,155.01,0.04213369]
[1749465184051,5.16012581,155.03,154.98,10.39]
[1749465184252,6.448,155.01,154.98,10.39]
[1749465184971,6.4484,155.0,154.98,10.39]
[1749465185257,6.4484,155.0,154.98,10.43203668]
[1749465185654,5.16012581,155.0,154.98,10.43203668]
[1749465185858,0.04256042,155.01,154.98,10.43203668]
[1749465186060,0.04256042,155.01,154.99,6.4483]
[1749465186263,0.04256042,155.01,154.98,15.77338504]
[1749465186465,0.04256042,155.01,155.0,5.34134836]
[1749465186653,0.04256042,155.01,155.0,11.78944836]
[1749465187564,0.04256042,155.01,154.99,37.86]
[1749465190257,0.04256042,155.01,155.0,6.4478]
[1749465191265,0.04256042,155.01,154.99,44.3081]
[1749465192461,5.14308566,155.05,154.99,44.3081]
[1749465192462,10.28784689,155.09,155.0,5.34134836]
[1749465192662,10.26204689,155.13,155.04,5.34134836]
[1749465192866,5.14247822,155.12,155.06,11.78624836]
[1749465193057,5.14247822,155.11,155.06,42.50134836]
[1749465193260,5.14247822,155.1,155.06,42.50134836]
[1749465193468,0.04887705,155.1,155.06,48.98924147]
[1749465193668,0.04887705,155.1,155.06,43.64789311]
[1749465194663,0.04887705,155.1,155.06,37.20269311]
[1749465194973,0.04887705,155.1,155.08,6.4441]
[1749465196271,0.04887705,155.1,155.07,5.34134836]
[1749465196568,0.04887705,155.1,155.06,42.54404147]
[1749465197268,0.04887705,155.1,155.06,48.98924147]
[1749465197660,0.04887705,155.1,155.06,42.54404147]
[1749465197857,0.04887705,155.1,155.07,6.4449]
[1749465198061,0.04887705,155.1,155.06,42.54404147]
[1749465198263,6.49287705,155.1,155.06,37.20269311]
[1749465199169,6.4441,155.09,155.06,37.20269311]
[1749465199568,0.04887705,155.1,155.06,37.20269311]
[1749465199761,6.4442,155.09,155.06,37.20269311]
[1749465199962,0.04887705,155.1,155.06,37.20269311]
[1749465200358,6.4449,155.07,155.06,37.20269311]
[1749465200559,6.4449,155.07,155.06,0.04269311]
[1749465201170,0.04887705,155.1,155.06,0.04269311]
[1749465201171,6.4447,155.08,155.06,0.04269311]
[1749465201365,0.04887705,155.1,155.06,0.04269311]
[1749465201567,6.4444,155.09,155.06,0.04269311]
[1749465201968,0.04887705,155.1,155.06,0.04269311]
[1749465202270,6.4444,155.09,155.06,0.04269311]
[1749465202473,0.04887705,155.1,155.06,0.04269311]
[1749465202666,6.49297705,155.1,155.06,0.04269311]
[1749465203073,6.4444,155.09,155.06,0.04269311]
[1749465203273,0.04887705,155.1,155.06,0.04269311]
[1749465203669,6.4449,155.07,155.06,0.04269311]
[1749465203868,5.34134836,155.09,155.05,9.79]
[1749465204068,6.4453,155.06,155.05,9.79]
[1749465204264,6.4453,155.06,155.05,6.3369]
[1749465204773,48.50549525,155.09,155.01,37.16]
[1749465205076,0.04724716,155.07,155.04,0.04383309]
[1749465205276,6.4457,155.05,155.04,0.04383309]
[1749465207271,0.04724716,155.07,155.04,0.04383309]
[1749465208276,0.04724716,155.07,155.04,6.48973309]
[1749465209672,0.04724716,155.07,155.04,0.04383309]
[1749465210269,0.04724716,155.07,155.04,6.48993309]
[1749465211380,0.04724716,155.07,155.05,6.4457]
[1749465211776,0.04724716,155.07,155.05,42.50134836]
[1749465211979,0.04724716,155.07,155.06,6.4453]
[1749465212776,0.04724716,155.07,155.05,43.6056]
[1749465213771,0.04724716,155.07,155.06,6.4453]
[1749465214980,6.00414689,155.14,155.06,5.34134836]
[1749465215282,10.09502782,155.13,155.05,37.16]
[1749465215483,6.4436,155.11,155.07,6.4447]
[1749465216175,0.04169764,155.11,155.08,6.4442]
[1749465217276,0.04169764,155.11,155.09,6.444]
[1749465217873,0.04169764,155.11,155.1,6.4437]
[1749465218182,0.04169764,155.11,155.07,0.04182137]
[1749465218577,0.04169764,155.11,155.08,6.4442]
[1749465218778,0.04169764,155.11,155.07,0.04182137]
[1749465219082,0.04169764,155.11,155.09,6.4441]
[1749465220382,6.48499764,155.11,155.08,6.4444]
[1749465220574,0.04169764,155.11,155.07,0.04182137]
[1749465220974,0.04169764,155.11,155.07,6.48642137]
[1749465221171,0.04169764,155.11,155.07,0.04182137]
[1749465221375,0.04169764,155.11,155.08,11.78554836]
[1749465221571,0.04169764,155.11,155.09,37.3]
[1749465221981,0.04169764,155.11,155.09,43.7438]
[1749465222178,0.04169764,155.11,155.09,37.3]
[1749465222383,0.04169764,155.11,155.1,5.34134836]
[1749465222577,0.04169764,155.11,155.1,11.78504836]
[1749465223881,6.00414689,155.19,155.1,11.78504836]
[1749465223882,4.10455193,155.18,155.1,5.34134836]
[1749465224480,6.4412,155.16,155.13,6.4422]
[1749465224881,6.48793926,155.16,155.13,0.04541683]
[1749465225282,6.4417,155.15,155.13,0.04541683]
[1749465225983,0.04673926,155.16,155.13,0.04541683]
[1749465226588,6.442,155.14,155.13,0.04541683]
[1749465227691,6.4417,155.15,155.13,0.04541683]
[1749465227985,6.00414689,155.23,155.14,11.78334836]
[1749465228183,10.12676349,155.22,155.14,5.34134836]
[1749465228381,4.1226166,155.21,155.14,5.34134836]
[1749465228592,6.4403,155.19,155.14,11.78334836]
[1749465228789,6.00414689,155.22,155.14,11.78334836]
[1749465228987,0.04251967,155.2,155.16,0.04331693]
[1749465229186,6.4402,155.19,155.16,0.04331693]
[1749465229389,0.04251967,155.2,155.16,0.04331693]
[1749465230290,6.4408,155.17,155.16,0.04331693]
[1749465230488,2.2849,155.19,155.1,37.28]
[1749465230785,5.34134836,155.16,155.07,37.28]
[1749465230985,5.34134836,155.14,155.04,42.62134836]
[1749465231194,43.68900188,155.13,155.04,37.28]
[1749465231393,4.12410188,155.12,155.06,6.4451]
[1749465231592,0.04892191,155.11,155.07,0.04381128]
[1749465232592,0.04892191,155.11,155.07,6.48851128]
[1749465233096,0.04892191,155.11,155.08,6.4444]
[1749465233393,0.04892191,155.11,155.08,42.62134836]
[1749465233889,0.04892191,155.11,155.08,37.28]
[1749465234896,6.4438,155.1,155.08,37.28]
[1749465235498,6.49232191,155.11,155.08,37.28]
[1749465235799,0.04892191,155.11,155.08,37.28]
[1749465236602,6.4437,155.1,155.08,37.28]
[1749465236787,0.04892191,155.11,155.08,37.28]
[1749465237798,0.04892191,155.11,155.08,43.7244]
[1749465238097,0.04892191,155.11,155.08,37.28]
[1749465238296,6.49242191,155.11,155.08,37.28]
[1749465239099,6.4437,155.1,155.08,37.28]
[1749465239298,0.04892191,155.11,155.08,37.28]
[1749465239596,6.49252191,155.11,155.08,37.28]
[1749465240403,0.04892191,155.11,155.08,37.28]
[1749465240594,0.04892191,155.11,155.08,42.62134836]
[1749465240901,4.3772,155.19,155.1,5.34134836]
[1749465241193,4.3772,155.19,155.14,3.26959455]
[1749465241400,4.1008782,155.18,155.14,3.26959455]
[1749465241594,6.4415,155.16,155.13,3.26959455]
[1749465241795,0.04160288,155.16,155.13,3.31270646]
[1749465242191,0.04160288,155.16,155.13,0.04311191]
[1749465242599,0.04160288,155.16,155.15,3.26959455]
[1749465243301,268.92929208,155.26,155.13,0.04311191]
[1749465243499,6.31259318,155.24,155.15,5.32624686]
[1749465243800,2.2223,155.24,155.16,37.28]
[1749465243995,5.32624686,155.23,155.13,37.28]
[1749465244195,0.04966208,155.2,155.16,0.04420592]
[1749465244796,6.4403,155.19,155.16,0.04420592]
[1749465245602,0.04966208,155.2,155.16,6.48540592]
[1749465245902,0.04966208,155.2,155.16,0.04420592]
[1749465246793,6.4408,155.17,155.16,0.04420592]
[1749465247397,10.56798039,155.17,155.16,0.04420592]
[1749465247603,10.56802647,155.17,155.16,0.04420592]
[1749465247801,6.4408,155.17,155.16,0.04420592]
[1749465248004,10.56802647,155.17,155.16,0.04420592]
[1749465248704,6.4422,155.14,155.1,414.9434]
[1749465249204,6.4423,155.14,155.1,414.9434]
[1749465249401,2.2502,155.18,155.1,408.5]
[1749465249803,6.4427,155.13,155.12,0.04380558]
[1749465250201,5.28659345,155.15,155.12,0.04380558]
[1749465250400,5.28659345,155.14,155.12,0.04380558]
[1749465250809,5.28659345,155.15,155.12,0.04380558]
[1749465251011,5.28659345,155.14,155.12,0.04380558]
[1749465251608,5.28659345,155.13,155.12,0.04380558]
[1749465251796,5.28659345,155.15,155.12,0.04380558]
[1749465252000,0.04284816,155.16,155.13,5.32624686]
[1749465252202,6.4423,155.14,155.12,0.04380558]
[1749465252409,5.29167088,155.13,155.12,0.04380558]
[1749465253007,6.4435,155.11,155.06,44.69694686]
[1749465253208,5.29167088,155.1,155.06,44.69694686]
[1749465253413,5.99618208,155.13,155.06,37.16]
[1749465253613,5.99618208,155.13,155.03,7.56084686]
[1749465253614,11.32242894,155.11,155.02,37.16]
[1749465253802,0.0414001,155.08,155.05,0.04375282]
[1749465254004,5.29272493,155.07,155.05,0.04375282]
[1749465254201,0.0414001,155.08,155.05,0.04375282]
[1749465254202,11.73802493,155.06,155.05,0.04375282]
[1749465256005,6.4462,155.04,155.03,9.2]
[1749465256407,6.4478,155.0,154.99,37.16]
[1749465256805,0.04503863,155.01,154.98,0.04694299]
[1749465257211,6.4482,154.99,154.98,0.04694299]
[1749465258609,6.4493,154.97,154.94,12.63]
[1749465258912,42.50624686,155.02,154.94,12.63]
[1749465259111,5.20653661,155.01,154.94,19.0799]
[1749465259714,6.49450611,154.99,154.96,0.04854036]
[1749465259906,0.04590611,154.99,154.96,0.04854036]
[1749465260613,6.4487,154.98,154.96,0.04854036]
[1749465262212,6.4491,154.97,154.96,0.04854036]
[1749465263817,6.4491,154.97,154.94,12.63]
[1749465263818,6.4499,154.95,154.94,12.63]
[1749465264019,5.32624686,154.95,154.87,37.18]
[1749465264714,0.04266441,154.93,154.87,37.18]
[1749465266115,0.04266441,154.93,154.85,371.42]
[1749465266415,0.04266441,154.93,154.86,0.74]
[1749465267109,6.4521,154.9,154.86,0.74]
[1749465267815,6.4524,154.89,154.86,0.74]
[1749465268121,0.04943056,154.89,154.86,0.74]
[1749465268315,0.04943056,154.89,154.86,7.1936]
[1749465268917,0.04943056,154.89,154.86,0.74]
[1749465270518,5.32624686,154.88,154.81,274.86482754]
[1749465271325,6.4548,154.84,154.81,274.86482754]
[1749465271517,6.50219561,154.84,154.79,6.4562]
[1749465271917,6.50219561,154.84,154.8,6.456]
[1749465272122,6.50219561,154.84,154.78,39.417]
[1749465272322,0.04739561,154.84,154.78,39.417]
[1749465274619,0.04739561,154.84,154.82,6.4552]
[1749465277423,6.4554,154.82,154.78,37.2]
[1749465277727,5.32624686,154.83,154.76,371.64]
[1749465278022,0.04435696,154.81,154.75,43.6782]
[1749465278422,6.4566,154.79,154.75,37.22]
[1749465278822,0.04435696,154.81,154.76,6.4575]
[1749465279029,0.04435696,154.81,154.75,37.22]
[1749465279421,0.04435696,154.81,154.78,6.4566]
[1749465279621,0.04435696,154.81,154.75,37.22]
[1749465280025,0.04435696,154.81,154.79,6.4565]
[1749465280229,0.04435696,154.81,154.75,37.22]
[1749465281631,0.04435696,154.81,154.76,5.32624686]
[1749465281929,0.04435696,154.81,154.8,6.4561]
[1749465282131,37.2,154.89,154.8,5.32624686]
[1749465283020,6.4543,154.85,154.83,0.04879914]
[1749465283727,0.04329897,154.86,154.83,0.04879914]
[1749465284829,0.04329897,154.86,154.84,6.4543]
[1749465285027,0.04329897,154.86,154.84,5.32624686]
[1749465286032,0.04329897,154.86,154.85,6.4541]
[1749465288137,6.4523,154.9,154.86,6.4535]
[1749465289033,6.49491982,154.9,154.87,6.4531]
[1749465289233,6.4528,154.89,154.86,0.04509511]
[1749465289631,0.04261982,154.9,154.86,0.04509511]
[1749465292635,6.4528,154.89,154.86,0.04509511]
[1749465293635,6.4529,154.88,154.86,0.04509511]
[1749465294035,6.4532,154.87,154.86,0.04509511]
[1749465295635,6.453,154.88,154.86,0.04509511]
[1749465295939,0.04261982,154.9,154.86,0.04509511]
[1749465296940,0.04261982,154.9,154.87,6.4532]
[1749465297441,0.04261982,154.9,154.88,6.4527]
[1749465298141,0.04261982,154.9,154.86,3.32595905]
[1749465298534,0.04261982,154.9,154.87,6.4531]
[1749465298937,6.49481982,154.9,154.86,9.77945905]
[1749465299140,0.04261982,154.9,154.86,3.32595905]
[1749465299331,0.04261982,154.9,154.86,5.39096767]
[1749465299539,0.04261982,154.9,154.87,6.4529]
[1749465300040,0.04261982,154.9,154.86,5.39096767]
[1749465300236,0.04261982,154.9,154.86,0.04509511]
[1749465301240,0.04261982,154.9,154.87,6.4531]
[1749465301440,0.04261982,154.9,154.86,5.39096767]
[1749465301649,0.04261982,154.9,154.88,5.34587256]
[1749465301840,6.45,154.95,154.88,5.34587256]
[1749465302041,377.89720062,154.99,154.92,5.34587256]
[1749465302242,5.99720062,154.99,154.92,5.34587256]
[1749465302748,0.04670725,154.97,154.94,0.04371453]
[1749465304441,11.38978043,154.97,154.88,37.18]
[1749465304639,11.38978043,154.97,154.86,37.18]
[1749465304640,5.99720062,154.94,154.86,37.18]
[1749465304941,6.4528,154.88,154.86,37.18]
[1749465305137,5.99720062,154.92,154.83,37.18]
[1749465305342,0.04440752,154.89,154.86,0.0496786]
[1749465305942,6.04160814,154.89,154.86,0.0496786]
[1749465306140,6.4532,154.87,154.86,0.0496786]
[1749465306943,5.99720062,154.88,154.82,37.18]
[1749465307347,6.4543,154.85,154.79,41.6192]
[1749465307842,0.04120356,154.84,154.8,0.04550936]
[1749465308047,0.04120356,154.84,154.81,6.4555]
[1749465308439,6.49570356,154.84,154.8,0.04550936]
[1749465308642,0.04120356,154.84,154.8,0.04550936]
[1749465309246,0.04120356,154.84,154.81,6.4555]
[1749465310149,0.04120356,154.84,154.82,6.4553]
[1749465310552,0.04120356,154.84,154.81,6.4556]
[1749465310854,6.49580356,154.84,154.8,0.04550936]
[1749465311045,0.04120356,154.84,154.8,0.04550936]
[1749465311246,6.49580356,154.84,154.8,6.50150936]
[1749465311453,0.04120356,154.84,154.8,6.50150936]
[1749465311751,6.49590356,154.84,154.8,6.50150936]
[1749465311953,0.04120356,154.84,154.8,0.04550936]
[1749465313452,6.4557,154.81,154.8,0.04550936]
[1749465317556,6.4554,154.82,154.8,0.04550936]
[1749465317757,37.18120356,154.84,154.8,0.04550936]
[1749465318960,6.4556,154.82,154.8,0.04550936]
[1749465319254,37.18120356,154.84,154.8,0.04550936]
[1749465320160,6.4557,154.81,154.8,0.04550936]
[1749465323856,37.18120356,154.84,154.8,0.04550936]
[1749465324155,0.04120356,154.84,154.8,0.04550936]
[1749465324360,6.455,154.83,154.8,0.04550936]
[1749465324757,0.04120356,154.84,154.8,0.04550936]
[1749465325258,0.04120356,154.84,154.8,40.49124776]
[1749465326061,6.455,154.83,154.8,40.49124776]
[1749465326367,6.455,154.83,154.8,46.94734776]
[1749465327065,6.455,154.83,154.8,40.49124776]
[1749465327368,6.4554,154.82,154.8,40.49124776]
[1749465327554,0.04120356,154.84,154.8,37.20550936]
[1749465328966,6.4556,154.82,154.8,37.20550936]
[1749465329265,0.04120356,154.84,154.8,37.20550936]
[1749465329767,6.4551,154.83,154.8,43.66160936]
[1749465330158,6.4551,154.83,154.8,37.20550936]
[1749465330562,6.49590356,154.84,154.8,37.20550936]
[1749465330864,0.04120356,154.84,154.8,37.20550936]
[1749465331263,6.49580356,154.84,154.8,43.66140936]
[1749465331760,6.49580356,154.84,154.81,6.4556]
[1749465331960,0.04120356,154.84,154.81,6.4556]
[1749465332465,0.04120356,154.84,154.8,40.49124776]
[1749465333260,0.04120356,154.84,154.81,6.4555]
[1749465334965,0.04120356,154.84,154.8,40.49124776]
[1749465335266,5.99720062,154.91,154.82,3.2857384]
[1749465335568,5.99720062,154.92,154.87,3.2857384]
[1749465335768,5.99720062,154.94,154.87,3.2857384]
[1749465335963,9.28293902,154.94,154.86,37.14]
[1749465336265,5.99720062,154.93,154.88,0.04607969]
[1749465336467,6.4523,154.9,154.88,0.04607969]
[1749465337165,6.4524,154.89,154.88,0.04607969]
[1749465337365,0.04449812,154.92,154.88,0.04607969]
[1749465337766,6.4523,154.9,154.88,0.04607969]
[1749465337966,0.04449812,154.92,154.88,0.04607969]
[1749465338169,6.4523,154.9,154.88,0.04607969]
[1749465338470,0.04449812,154.92,154.89,6.4522]
[1749465338676,0.04449812,154.92,154.88,3.33181809]
[1749465338869,0.04449812,154.92,154.9,3.2857384]
[1749465339061,0.04449812,154.92,154.9,9.7376384]
[1749465339972,0.04449812,154.92,154.9,3.2857384]
[1749465341173,6.49569812,154.92,154.9,3.2857384]
[1749465341371,0.04449812,154.92,154.9,3.2857384]
[1749465341868,0.04449812,154.92,154.9,9.7376384]
[1749465342169,0.04449812,154.92,154.9,3.2857384]
[1749465342366,0.04449812,154.92,154.88,0.04607969]
[1749465342969,6.49589812,154.92,154.88,0.04607969]
[1749465343276,0.04449812,154.92,154.89,3.2857384]
[1749465343468,0.04449812,154.92,154.91,6.4516]
[1749465343674,0.04449812,154.92,154.91,9.7373384]
[1749465344667,0.04449812,154.92,154.91,3.2857384]
[1749465345874,0.04449812,154.92,154.9,37.08]
[1749465346174,6.4516,154.91,154.88,0.04607969]
[1749465346776,6.452,154.9,154.88,0.04607969]
[1749465347269,3.33023652,154.92,154.88,0.04607969]
[1749465348069,6.4524,154.89,154.88,0.04607969]
[1749465350267,6.4522,154.9,154.88,0.04607969]
[1749465350672,0.04449812,154.92,154.88,0.04607969]
[1749465350874,6.49579812,154.92,154.88,6.49877969]
[1749465351375,6.49579812,154.92,154.89,6.4523]
[1749465351571,0.04449812,154.92,154.89,3.2857384]
[1749465351972,0.04449812,154.92,154.9,6.4518]
[1749465352371,0.04449812,154.92,154.89,3.2857384]
[1749465352578,0.04449812,154.92,154.9,6.452]
[1749465352780,0.04449812,154.92,154.89,3.2857384]
[1749465353376,6.49579812,154.92,154.89,3.2857384]
[1749465353580,0.04449812,154.92,154.88,37.12607969]
[1749465353980,6.4517,154.91,154.88,37.12607969]
[1749465354174,0.04449812,154.92,154.88,37.12607969]
[1749465354578,0.04449812,154.92,154.88,0.04607969]
[1749465355677,0.04449812,154.92,154.89,3.2857384]
[1749465355973,0.04449812,154.92,154.89,40.3657384]
[1749465356568,10.39940062,155.0,154.91,3.2857384]
[1749465356569,4.4022,155.0,154.91,3.2857384]
[1749465356772,6.4493,154.97,154.93,3.2857384]
[1749465356982,7.6879384,155.0,154.91,3.2857384]
[1749465357382,6.4502,154.95,154.9,9.58896701]
[1749465357676,0.04897992,154.94,154.91,0.041993]
[1749465360176,6.4512,154.92,154.91,0.041993]
[1749465360372,0.04897992,154.94,154.91,0.041993]
[1749465360584,0.04897992,154.94,154.91,5.38546001]
[1749465360883,2.209,155.01,154.93,5.34346701]
[1749465361075,2.209,155.01,154.95,5.34346701]
[1749465361282,5.13044562,155.02,154.95,42.40346701]
[1749465361477,5.13044562,155.02,154.97,5.34346701]
[1749465361871,0.0459758,155.01,154.98,0.04265989]
[1749465362478,6.4483,154.99,154.98,0.04265989]
[1749465362685,0.0459758,155.01,154.98,0.04265989]
[1749465363685,6.4483,154.99,154.98,0.04265989]
[1749465364380,6.448,155.0,154.98,0.04265989]
[1749465364579,0.0459758,155.01,154.98,0.04265989]
[1749465366078,6.4478,155.0,154.98,0.04265989]
[1749465367278,6.4482,154.99,154.98,0.04265989]
[1749465368290,6.4479,155.0,154.98,0.04265989]
[1749465368484,0.0459758,155.01,154.98,0.04265989]
[1749465368885,6.4478,155.0,154.98,0.04265989]
[1749465369089,0.0459758,155.01,154.98,0.04265989]
[1749465369478,6.4482,154.99,154.98,0.04265989]
[1749465371590,5.13679344,155.0,154.98,0.04265989]
[1749465371786,0.0459758,155.01,154.98,0.04265989]
[1749465371987,6.4482,155.0,154.98,0.04265989]
[1749465372181,0.0459758,155.01,154.98,0.04265989]
[1749465372588,6.4482,155.0,154.98,0.04265989]
[1749465372784,0.0459758,155.01,154.98,0.04265989]
[1749465374188,6.4481,155.0,154.98,0.04265989]
[1749465374792,6.4482,154.99,154.98,0.04265989]
[1749465375696,6.448,155.0,154.98,0.04265989]
[1749465376493,0.0459758,155.01,154.98,0.04265989]
[1749465377097,5.99720062,155.1,154.99,42.32346701]
[1749465377301,5.14375001,155.09,155.01,5.34346701]
[1749465377601,6.4452,155.07,155.01,11.79056701]
[1749465377898,6.4452,155.07,155.01,5.34346701]
[1749465378095,0.04110724,155.06,155.02,0.04653199]
[1749465378301,0.04110724,155.06,155.03,42.32346701]
[1749465379002,6.48650724,155.06,155.03,42.32346701]
[1749465379206,6.48650724,155.06,155.04,3.27351054]
[1749465379702,0.04110724,155.06,155.04,3.27351054]
[1749465380198,0.04110724,155.06,155.03,40.25351054]
[1749465381003,6.4462,155.04,155.03,36.98]
[1749465381207,0.04110724,155.06,155.02,0.04653199]
[1749465382309,6.446,155.05,155.02,0.04653199]
[1749465382608,0.04110724,155.06,155.02,0.04653199]
[1749465383001,6.48670724,155.06,155.02,0.04653199]
[1749465383907,0.04110724,155.06,155.02,3.32004253]
[1749465384104,0.04110724,155.06,155.02,9.76674253]
[1749465384610,0.04110724,155.06,155.03,6.4466]
[1749465384809,0.04110724,155.06,155.02,3.32004253]
[1749465385206,0.04110724,155.06,155.02,9.76674253]